bitfinex/quotes_SOLUSD_20250704
["timestamp","ask_amount","ask_price","bid_price","bid_amount"]
[1751595587725,6.57505424,152.09,152.05,6.22849295]
[1751595589222,6.57505424,152.09,152.06,6.22849295]
[1751595590611,6.57505424,152.09,152.04,0.42648471]
[1751595590924,6.57505424,152.09,152.06,6.22849295]
[1751595591129,6.57505424,152.09,152.04,0.42648471]
[1751595591416,12.80441193,152.07,152.03,6.22849295]
[1751595591594,12.80441193,152.07,152.02,0.42648471]
[1751595591796,6.22849295,152.06,152.02,6.65497766]
[1751595591996,6.22849295,152.06,152.02,0.42648471]
[1751595592196,6.57591898,152.07,152.02,6.51281609]
[1751595592409,6.22849295,152.06,152.02,6.51281609]
[1751595593210,12.80441193,152.07,152.03,6.22849295]
[1751595593611,6.57591898,152.07,152.04,6.22849295]
[1751595593996,26.0,152.12,152.02,6.86237537]
[1751595593997,6.22849295,152.08,152.02,6.86237537]
[1751595594202,6.22849295,152.08,152.04,6.22849295]
[1751595594399,6.22849295,152.07,152.03,6.22849295]
[1751595595201,6.22849295,152.07,152.02,6.22849295]
[1751595595405,6.22849295,152.07,152.01,1.6358]
[1751595595716,6.57635144,152.06,152.03,6.22849295]
[1751595595902,12.80484439,152.06,152.02,6.22849295]
[1751595597726,6.22849295,152.05,152.0,0.1]
[1751595597926,6.22849295,152.04,152.0,6.32849295]
[1751595598428,6.22849295,152.04,152.0,0.1]
[1751595598635,6.22849295,152.03,152.0,0.1]
[1751595599112,6.22849295,152.04,152.0,0.1]
[1751595599308,6.22849295,152.04,152.0,6.32849295]
[1751595599712,6.57764914,152.03,152.0,6.32849295]
[1751595600232,6.57764914,152.03,152.0,0.1]
[1751595600540,12.80614209,152.03,152.0,0.1]
[1751595602536,1.664,152.07,152.02,6.22849295]
[1751595602711,1.664,152.07,152.03,6.22849295]
[1751595602907,1.664,152.07,152.04,6.22849295]
[1751595603226,12.79419295,152.08,152.04,6.22849295]
[1751595603734,6.57604426,152.07,152.04,6.22849295]
[1751595604311,6.57604426,152.07,152.03,6.22849295]
[1751595605235,12.80453721,152.07,152.03,6.22849295]
[1751595605613,6.57604426,152.07,152.03,6.22849295]
[1751595607227,6.57604426,152.07,152.01,0.14216157]
[1751595607439,6.57604426,152.07,152.03,6.22849295]
[1751595607927,6.57604426,152.07,152.01,6.72060247]
[1751595608126,6.57604426,152.07,152.04,6.22849295]
[1751595608323,12.80453721,152.07,152.03,6.22849295]
[1751595608526,6.22849295,152.05,152.0,6.32849295]
[1751595608723,6.22849295,152.03,152.0,0.1]
[1751595609629,6.57808183,152.02,152.0,0.1]
[1751595609833,6.57721652,152.04,152.0,6.32849295]
[1751595610016,6.57721652,152.04,152.01,6.22849295]
[1751595612343,6.57721652,152.04,152.02,6.22849295]
[1751595612551,6.57697874,152.05,152.02,6.22849295]
[1751595613725,32.57654641,152.06,152.03,6.22849295]
[1751595614075,152.62849295,152.09,152.05,6.22849295]
[1751595614219,6.57548658,152.08,152.05,6.22849295]
[1751595614542,6.57512669,152.09,152.07,6.22849295]
[1751595615546,6.57462195,152.1,152.06,6.22849295]
[1751595617417,12.8031149,152.1,152.06,6.22849295]
[1751595618123,6.57462195,152.1,152.06,6.22849295]
[1751595618927,13.0031149,152.1,152.05,6.22849295]
[1751595619233,13.0031149,152.1,152.06,6.22849295]
[1751595619435,13.0031149,152.1,152.05,6.22849295]
[1751595620740,13.0031149,152.1,152.04,0.28432314]
[1751595620741,13.0031149,152.1,152.06,6.22849295]
[1751595622160,6.77462195,152.1,152.06,6.22849295]
[1751595622360,6.77462195,152.1,152.07,6.22849295]
[1751595624250,6.77462195,152.1,152.06,6.22849295]
[1751595624778,0.2,152.1,152.08,6.22849295]
[1751595624964,0.2,152.1,152.09,6.22849295]
[1751595633471,0.2,152.1,152.09,6.65497766]
[1751595633774,0.2,152.1,152.09,13.2300319]
[1751595634357,6.77462195,152.1,152.05,1.5135]
[1751595634579,6.77462195,152.1,152.08,0.42648471]
[1751595634774,6.77462195,152.1,152.09,6.22849295]
[1751595634775,0.2,152.1,152.09,6.22849295]
[1751595640393,0.2,152.1,152.09,6.65497766]
[1751595641991,0.2,152.1,152.09,13.2300319]
[1751595645662,0.2,152.13,152.12,26.0]
[1751595645865,0.2,152.13,152.12,39.08657364]
[1751595651973,0.2,152.13,152.09,0.1]
[1751595652178,6.77332544,152.13,152.1,6.22849295]
[1751595653191,6.77332544,152.13,152.09,0.1]
[1751595653396,6.77332544,152.13,152.1,6.22849295]
[1751595653579,6.77332544,152.13,152.11,6.22849295]
[1751595654292,6.77332544,152.13,152.09,0.1]
[1751595654492,6.77332544,152.13,152.09,6.32849295]
[1751595656195,13.00181839,152.13,152.09,6.32849295]
[1751595656397,6.77332544,152.13,152.1,6.22849295]
[1751595656900,6.77332544,152.13,152.11,6.22849295]
[1751595657599,6.77332544,152.13,152.1,6.22849295]
[1751595658002,6.77332544,152.13,152.09,6.61281609]
[1751595660779,6.77332544,152.13,152.1,6.22849295]
[1751595660976,6.77332544,152.13,152.09,0.38432314]
[1751595660977,0.2,152.13,152.12,6.22849295]
[1751595661290,0.2,152.13,152.12,6.65497766]
[1751595661494,0.2,152.13,152.12,13.22873521]
[1751595663404,0.2,152.17,152.13,0.42648471]
[1751595663602,0.2,152.17,152.16,6.65497766]
[1751595663921,0.2,152.17,152.16,12.88347061]
[1751595665402,0.2,152.17,152.16,19.45550005]
[1751595668217,0.2,152.18,152.17,0.42648471]
[1751595668410,0.2,152.18,152.17,32.65497766]
[1751595669398,0.2,152.18,152.17,39.22657521]
[1751595670795,0.2,152.18,152.17,13.22657521]
[1751595673808,0.2,152.2,152.19,26.42648471]
[1751595674014,0.2,152.2,152.19,32.65497766]
[1751595674302,0.2,152.2,152.19,39.22571161]
[1751595676288,0.2,152.2,152.19,46.06571161]
[1751595681120,0.2,152.2,152.19,46.06571161]
[1751595684025,0.2,152.2,152.19,39.49497766]
[1751595684327,0.2,152.2,152.19,39.21065452]
[1751595684616,0.2,152.2,152.19,39.49497766]
[1751595688328,0.2,152.2,152.19,46.06571161]
[1751595690908,0.2,152.2,152.19,39.83721866]
[1751595691112,0.2,152.2,152.19,46.06571161]
[1751595710625,0.2,152.2,152.19,45.6392269]
[1751595710938,0.2,152.2,152.19,46.06571161]
[1751595713244,0.2,152.2,152.19,33.26648471]
[1751595713440,0.2,152.2,152.19,39.49497766]
[1751595714844,0.2,152.2,152.19,46.06571161]
[1751595715645,0.2,152.2,152.19,39.49497766]
[1751595716455,0.2,152.2,152.19,33.26648471]
[1751595716623,0.2,152.2,152.19,39.49497766]
[1751595718748,0.2,152.2,152.19,33.26648471]
[1751595719048,0.2,152.2,152.19,13.49497766]
[1751595719952,0.2,152.2,152.19,6.65497766]
[1751595722522,0.2,152.2,152.19,0.42648471]
[1751595722841,0.2,152.2,152.19,6.65497766]
[1751595733764,0.2,152.2,152.19,4.40847258]
[1751595736961,0.2,152.2,152.19,10.97920653]
[1751595737767,0.2,152.2,152.19,36.97920653]
[1751595738463,0.2,152.2,152.19,32.99721866]
[1751595738770,0.2,152.2,152.19,36.97920653]
[1751595742137,0.2,152.2,152.19,19.13881036]
[1751595742959,0.2,152.2,152.19,10.97920653]
[1751595743853,0.2,152.2,152.19,13.21784538]
[1751595747880,0.2,152.2,152.19,39.21784538]
[1751595748879,0.2,152.2,152.19,21.37744921]
[1751595751876,0.2,152.22,152.21,26.42648471]
[1751595752073,0.2,152.22,152.21,32.64711143]
[1751595755278,0.2,152.22,152.21,39.216982]
[1751595758682,0.2,152.22,152.21,26.0]
[1751595758889,0.2,152.22,152.21,38.79049729]
[1751595759062,0.2,152.22,152.21,38.93265886]
[1751595759261,0.2,152.22,152.21,0.28432314]
[1751595759571,14.74130768,152.22,152.18,13.14062672]
[1751595759778,14.39232672,152.22,152.18,19.71175382]
[1751595760082,20.96176808,152.22,152.19,0.42648471]
[1751595760865,6.22062672,152.21,152.19,0.42648471]
[1751595761064,6.22062672,152.2,152.18,6.92]
[1751595761396,6.22062672,152.21,152.18,6.92]
[1751595761567,6.22062672,152.2,152.18,6.92]
[1751595762165,14.74128504,152.22,152.18,6.92]
[1751595762365,6.22062672,152.21,152.18,6.92]
[1751595765106,14.74128504,152.22,152.18,13.14062672]
[1751595765282,20.96191176,152.22,152.18,13.14062672]
[1751595766610,20.96191176,152.22,152.18,6.92]
[1751595768414,6.22062672,152.21,152.18,6.92]
[1751595769690,8.1717,152.22,152.19,0.42648471]
[1751595769891,6.5288,152.22,152.19,6.64711143]
[1751595770398,6.5288,152.22,152.19,13.21767735]
[1751595770581,0.2,152.22,152.19,13.21767735]
[1751595772506,0.2,152.22,152.19,0.42648471]
[1751595774815,6.76949125,152.22,152.19,0.42648471]
[1751595775810,0.2,152.22,152.19,0.42648471]
[1751595776812,0.2,152.22,152.19,6.64711143]
[1751595777111,0.2,152.22,152.19,13.21782787]
[1751595780232,0.2,152.22,152.19,6.99720115]
[1751595780405,0.2,152.22,152.19,13.21782787]
[1751595781314,0.2,152.22,152.21,6.64711143]
[1751595783008,0.2,152.22,152.21,13.216982]
[1751595785523,0.2,152.22,152.21,6.64711143]
[1751595785721,0.2,152.22,152.2,0.14216157]
[1751595786018,0.2,152.22,152.18,6.92]
[1751595786019,6.22062672,152.21,152.18,6.92]
[1751595787002,12.79076917,152.21,152.18,6.92]
[1751595789122,6.22062672,152.2,152.18,6.92]
[1751595789323,6.22062672,152.19,152.18,6.92]
[1751595789527,6.22062672,152.19,152.18,0.1]
[1751595791111,12.79136067,152.19,152.18,0.1]
[1751595798040,6.57073395,152.19,152.18,0.1]
[1751595798220,12.79136067,152.19,152.18,0.1]
[1751595799924,6.57073395,152.19,152.18,0.1]
[1751595800125,12.79136067,152.19,152.18,0.1]
[1751595803426,6.57043331,152.2,152.18,0.1]
[1751595803634,12.79106003,152.2,152.18,0.1]
[1751595803943,6.57043331,152.2,152.18,0.1]
[1751595806547,6.56987057,152.21,152.18,0.1]
[1751595807450,6.56987057,152.21,152.18,6.32062672]
[1751595807950,6.56987057,152.21,152.19,6.22062672]
[1751595808241,6.76950556,152.22,152.19,6.22062672]
[1751595811939,0.2,152.22,152.2,6.22062672]
[1751595812136,0.2,152.22,152.21,6.64711143]
[1751595814151,0.2,152.22,152.21,13.216982]
[1751595829625,0.2,152.22,152.21,6.99635528]
[1751595829855,0.2,152.22,152.21,13.216982]
[1751595833430,0.2,152.22,152.21,39.216982]
[1751595840570,0.2,152.25,152.24,0.42648471]
[1751595840869,0.2,152.25,152.24,12.86773815]
[1751595842471,0.2,152.25,152.24,19.43631408]
[1751595850746,1e-08,152.25,152.24,19.43631408]
[1751595850945,0.2,152.27,152.26,26.42648471]
[1751595851161,0.2,152.27,152.26,72.66711143]
[1751595851358,0.2,152.27,152.26,32.64711143]
[1751595851572,0.2,152.27,152.26,72.66711143]
[1751595852376,0.2,152.27,152.26,79.23482455]
[1751595852557,0.2,152.27,152.26,39.21482455]
[1751595852855,0.2,152.27,152.26,79.23482455]
[1751595853649,0.2,152.27,152.26,46.01482455]
[1751595854456,0.2,152.27,152.26,72.43482455]
[1751595854656,0.2,152.27,152.26,39.21482455]
[1751595854867,0.2,152.27,152.26,72.43482455]
[1751595865377,0.2,152.27,152.26,32.64711143]
[1751595865577,0.2,152.27,152.26,6.36278829]
[1751595865779,0.2,152.27,152.25,13.02062672]
[1751595866078,0.2,152.27,152.26,0.42648471]
[1751595866267,0.2,152.27,152.25,13.02062672]
[1751595866468,0.2,152.27,152.26,0.42648471]
[1751595882315,0.2,152.27,152.26,0.28432314]
[1751595882613,0.2,152.27,152.26,0.14216157]
[1751595884115,0.2,152.27,152.26,4.40562674]
[1751595888629,0.2,152.27,152.26,0.42648471]
[1751595888922,0.2,152.27,152.26,4.40562674]
[1751595892118,0.2,152.27,152.26,0.42648471]
[1751595894363,10.7464282,152.27,152.25,0.1]
[1751595894704,6.76728617,152.27,152.25,0.1]
[1751595897734,0.2,152.27,152.25,0.1]
[1751595898328,0.2,152.27,152.25,4.36346517]
[1751595898506,0.2,152.27,152.26,4.40562674]
[1751595899610,0.2,152.27,152.26,10.97333986]
[1751595900304,0.2,152.27,152.26,36.97333986]
[1751595902324,0.2,152.27,152.26,70.19333986]
[1751595906746,0.2,152.27,152.26,26.42648471]
[1751595906952,0.2,152.27,152.26,30.40562674]
[1751595908042,0.2,152.27,152.26,36.97333986]
[1751595911438,0.2,152.27,152.26,30.40562674]
[1751595911826,0.2,152.27,152.26,36.97333986]
[1751595916632,0.2,152.27,152.26,30.40562674]
[1751595916834,0.2,152.27,152.26,36.97333986]
[1751595920357,0.2,152.27,152.26,30.40562674]
[1751595920544,0.2,152.27,152.25,0.1]
[1751595922477,6.76750377,152.27,152.25,0.1]
[1751595922648,3.97914203,152.26,152.25,0.1]
[1751595924147,10.7466458,152.27,152.25,0.1]
[1751595925547,10.54685515,152.26,152.25,0.1]
[1751595926664,3.97914203,152.26,152.25,0.1]
[1751595926872,10.74658903,152.27,152.25,0.1]
[1751595937158,6.767447,152.27,152.25,0.1]
[1751595937468,10.74658903,152.27,152.25,0.1]
[1751595937872,6.767447,152.27,152.25,0.1]
[1751595938484,10.74658903,152.27,152.25,0.1]
[1751595938987,0.2,152.27,152.25,0.1]
[1751595944686,0.2,152.27,152.26,4.40562674]
[1751595945573,0.2,152.27,152.26,10.97333986]
[1751595957606,4.17914203,152.27,152.25,0.1]
[1751595958093,4.17914203,152.27,152.25,0.52648471]
[1751595958893,0.2,152.27,152.25,0.52648471]
[1751595961625,0.2,152.27,152.25,7.09454833]
[1751595962125,0.2,152.27,152.25,0.52648471]
[1751595978122,0.2,152.27,152.25,11.07368581]
[1751595978311,0.2,152.27,152.26,4.1213036]
[1751595978505,0.2,152.27,152.26,10.68901672]
[1751595983727,0.2,152.27,152.26,6.70987469]
[1751595983905,0.2,152.27,152.26,10.68901672]
[1751595986935,0.2,152.27,152.26,6.70987469]
[1751595987112,0.2,152.27,152.26,10.68901672]
[1751595988441,0.2,152.27,152.26,0.14216157]
[1751596008262,0.2,152.27,152.26,4.1213036]
[1751596008563,0.2,152.27,152.26,10.68901672]
[1751596009964,0.2,152.27,152.26,4.1213036]
[1751596010165,0.2,152.27,152.26,0.14216157]
[1751596011073,0.2,152.27,152.26,6.70987469]
[1751596015568,0.2,152.27,152.26,0.14216157]
[1751596022574,0.2,152.27,152.26,4.1213036]
[1751596023267,0.2,152.27,152.26,10.68901672]
[1751596023578,0.2,152.27,152.26,4.1213036]
[1751596023786,0.2,152.27,152.26,0.14216157]
[1751596026398,0.2,152.27,152.26,10.68901672]
[1751596026886,0.2,152.27,152.26,10.97333986]
[1751596027094,0.2,152.27,152.26,36.97333986]
[1751596027274,0.2,152.27,152.26,41.15380166]
[1751596027589,0.2,152.27,152.26,36.97333986]
[1751596035310,0.2,152.27,152.26,32.99419783]
[1751596035609,0.2,152.27,152.26,36.97333986]
[1751596037427,0.2,152.27,152.25,0.1]
[1751596037628,3.97914203,152.26,152.25,0.1]
[1751596039110,0.2,152.27,152.25,0.1]
[1751596039310,4.17914203,152.27,152.25,0.1]
[1751596040121,3.97914203,152.26,152.25,0.1]
[1751596043211,4.17914203,152.27,152.25,0.1]
[1751596050641,0.2,152.27,152.25,0.1]
[1751596052647,4.17914203,152.27,152.25,0.1]
[1751596054554,0.2,152.27,152.25,0.1]
[1751596054729,4.17914203,152.27,152.25,0.1]
[1751596063453,10.74644496,152.27,152.25,0.1]
[1751596063835,3.97914203,152.26,152.25,0.1]
[1751596066063,10.54685515,152.26,152.25,0.1]
[1751596068063,3.97914203,152.26,152.25,0.1]
[1751596069367,10.54685515,152.26,152.25,0.1]
[1751596078975,10.74685515,152.26,152.25,0.1]
[1751596093078,10.74685515,152.26,152.25,1e-08]
[1751596115425,6.76771312,152.26,152.25,1e-08]
[1751596115625,10.74685515,152.26,152.25,1e-08]
[1751596115830,6.76771312,152.26,152.25,1e-08]
[1751596116124,10.74685515,152.26,152.25,1e-08]
[1751596124933,6.76771312,152.26,152.25,1e-08]
[1751596125329,10.74685515,152.26,152.25,1e-08]
[1751596128255,0.2,152.26,152.25,1e-08]
[1751596128430,0.2,152.26,152.25,4.40562675]
[1751596129527,0.2,152.26,152.25,30.40562675]
[1751596130331,0.2,152.26,152.25,36.97377124]
[1751596139150,0.2,152.26,152.25,30.40562675]
[1751596139452,0.2,152.26,152.25,36.97377124]
[1751596140454,0.2,152.26,152.25,30.40562675]
[1751596140633,0.2,152.26,152.25,4.40562675]
[1751596140956,0.2,152.26,152.25,1e-08]
[1751596148163,10.74685515,152.26,152.25,1e-08]
[1751596148951,4.17914203,152.26,152.25,1e-08]
[1751596149354,0.2,152.26,152.25,1e-08]
[1751596156362,6.76771312,152.26,152.25,1e-08]
[1751596157272,0.2,152.26,152.25,1e-08]
[1751596160584,10.74685515,152.26,152.25,1e-08]
[1751596166094,4.17914203,152.26,152.25,1e-08]
[1751596169896,10.74685515,152.26,152.25,1e-08]
[1751596180804,6.76771312,152.26,152.25,1e-08]
[1751596181006,4.17914203,152.26,152.25,1e-08]
[1751596181184,0.2,152.26,152.25,1e-08]
[1751596186409,0.2,152.26,152.25,4.40562675]
[1751596187311,0.2,152.26,152.25,0.42648472]
[1751596187516,0.2,152.26,152.25,10.97377124]
[1751596189228,0.2,152.26,152.25,4.40562675]
[1751596189395,0.2,152.26,152.25,10.97377124]
[1751596189596,0.2,152.26,152.25,4.40562675]
[1751596194522,0.2,152.26,152.25,10.97377124]
[1751596195029,0.2,152.26,152.25,30.40562675]
[1751596195802,0.2,152.26,152.25,36.97377124]
[1751596204151,0.2,152.26,152.25,30.40562675]
[1751596204350,0.2,152.26,152.25,4.40562675]
[1751596205153,0.2,152.26,152.25,10.97377124]
[1751596207363,0.2,152.26,152.25,1e-08]
[1751596207565,10.74685515,152.26,152.25,1e-08]
[1751596229698,36.74685515,152.26,152.25,1e-08]
[1751596234482,32.76771312,152.26,152.25,1e-08]
[1751596234797,0.2,152.26,152.25,1e-08]
[1751596236398,6.76771312,152.26,152.25,1e-08]
[1751596236701,10.74685515,152.26,152.25,1e-08]
[1751596243703,0.2,152.26,152.25,1e-08]
[1751596244408,0.2,152.26,152.25,3.97914204]
[1751596246695,0.2,152.26,152.25,10.54728653]
[1751596246895,0.2,152.26,152.25,10.97377124]
[1751596249782,0.2,152.26,152.25,6.99462921]
[1751596250006,0.2,152.26,152.25,10.97377124]
[1751596252810,0.2,152.26,152.25,1e-08]
[1751596256618,4.17914203,152.26,152.25,1e-08]
[1751596257011,0.2,152.26,152.25,1e-08]
[1751596257212,4.17914203,152.26,152.25,1e-08]
[1751596257605,0.2,152.26,152.25,1e-08]
[1751596277262,0.2,152.26,152.25,3.97914204]
[1751596277930,0.2,152.26,152.25,4.40562675]
[1751596279453,0.2,152.26,152.25,10.97377124]
[1751596286762,0.2,152.26,152.25,4.40562675]
[1751596286947,0.2,152.26,152.25,0.42648472]
[1751596287149,0.2,152.26,152.25,10.97377124]
[1751596287463,0.2,152.26,152.25,4.40562675]
[1751596287649,0.2,152.26,152.25,1e-08]
[1751596287848,4.17914203,152.26,152.25,1e-08]
[1751596288362,10.74685515,152.26,152.25,1e-08]
[1751596290365,43.08270607,152.26,152.2,6.74]
[1751596290661,3.97914203,152.21,152.19,0.1]
[1751596290844,3.97914203,152.2,152.19,0.1]
[1751596291845,6.22495657,152.2,152.19,0.1]
[1751596293971,12.79483546,152.21,152.19,0.1]
[1751596298379,6.22495657,152.2,152.19,0.1]
[1751596299377,12.7952588,152.2,152.19,0.1]
[1751596300565,6.57030223,152.2,152.19,0.1]
[1751596300778,12.7952588,152.2,152.19,0.1]
[1751596306964,6.22495657,152.21,152.19,0.1]
[1751596307865,6.22495657,152.22,152.19,0.1]
[1751596308063,12.79452305,152.22,152.19,0.1]
[1751596312392,6.56956648,152.22,152.19,0.1]
[1751596316877,3.98267722,152.22,152.19,0.1]
[1751596319108,10.55223648,152.22,152.19,0.1]
[1751596322624,6.56955926,152.22,152.19,0.1]
[1751596322917,10.55223648,152.22,152.19,0.1]
[1751596325008,0.2,152.25,152.21,3.98267722]
[1751596325211,0.2,152.25,152.24,10.55125315]
[1751596325514,0.2,152.25,152.24,10.97773786]
[1751596325889,0.2,152.25,152.24,13.21087493]
[1751596329792,0.2,152.25,152.24,39.21087493]
[1751596330191,0.2,152.25,152.24,45.42668922]
[1751596334928,0.2,152.25,152.24,39.21087493]
[1751596338526,0.2,152.25,152.24,32.99506064]
[1751596338720,0.2,152.25,152.24,38.92655179]
[1751596343516,0.2,152.25,152.23,6.21581429]
[1751596343720,6.41581429,152.25,152.21,19.52540094]
[1751596343919,6.21581429,152.24,152.21,6.74]
[1751596344757,12.78448766,152.24,152.21,6.74]
[1751596345647,6.21581429,152.23,152.21,6.74]
[1751596348932,12.78448766,152.24,152.21,6.74]
[1751596350145,6.21581429,152.24,152.21,6.74]
[1751596350343,6.76833299,152.25,152.21,6.74]
[1751596350514,12.98414728,152.25,152.21,6.74]
[1751596352243,6.21581429,152.24,152.21,6.74]
[1751596354953,0.2,152.25,152.23,6.21581429]
[1751596355154,0.2,152.25,152.22,6.21581429]
[1751596356239,0.2,152.25,152.24,6.21581429]
[1751596356446,0.2,152.25,152.22,0.14216157]
[1751596356648,0.2,152.25,152.24,6.21581429]
[1751596361152,0.2,152.25,152.24,12.78439022]
[1751596362565,0.2,152.25,152.24,6.21581429]
[1751596364971,0.2,152.25,152.22,7.09572156]
[1751596365145,0.2,152.25,152.24,6.21581429]
[1751596366068,0.2,152.25,152.22,0.24216157]
[1751596366267,6.41581429,152.25,152.22,0.24216157]
[1751596366472,12.98397929,152.25,152.22,0.1]
[1751596367674,0.2,152.25,152.22,0.1]
[1751596367964,0.2,152.25,152.22,6.31581429]
[1751596368277,6.76815662,152.25,152.22,6.31581429]
[1751596368472,12.98397091,152.25,152.22,0.1]
[1751596370364,6.21581429,152.23,152.22,0.1]
[1751596371563,12.78482171,152.23,152.22,0.1]
[1751596375272,6.56900742,152.23,152.22,0.1]
[1751596375474,12.78482171,152.23,152.22,0.1]
[1751596388457,12.78482171,152.23,152.22,1e-08]
[1751596391683,13.06914485,152.23,152.22,1e-08]
[1751596391982,26.0,152.2,152.19,0.1]
[1751596392176,32.21581429,152.2,152.19,0.1]
[1751596392574,33.80971429,152.2,152.19,0.1]
[1751596393879,32.57030223,152.2,152.19,0.1]
[1751596394067,6.21581429,152.22,152.19,0.1]
[1751596396382,6.21581429,152.21,152.19,0.1]
[1751596399100,7.8689,152.24,152.16,0.14216157]
[1751596399101,6.21581429,152.2,152.16,0.14216157]
[1751596399322,12.43162858,152.17,152.07,12.29703963]
[1751596399594,12.43162858,152.17,151.99,55.41193158]
[1751596399595,26.0,152.05,151.99,35.0]
[1751596399781,12.43162858,152.0,151.99,35.0]
[1751596400000,26.0,151.98,151.97,5.20780806]
[1751596400161,32.21581429,151.98,151.96,1.3408839]
[1751596400485,37.06731776,151.97,151.92,14.5]
[1751596400658,6.21581429,151.93,151.92,14.5]
[1751596400865,12.43162858,151.93,151.92,14.5]
[1751596401059,32.5828451,151.91,151.81,16.26999999]
[1751596401282,6.21581429,151.83,151.81,16.26999999]
[1751596401478,32.21581429,151.83,151.81,16.26999999]
[1751596401704,6.21581429,151.82,151.81,16.26999999]
[1751596401886,9.38868117,151.82,151.81,16.26999999]
[1751596402087,9.38868117,151.82,151.7,6.59195086]
[1751596402088,26.0,151.79,151.7,6.59195086]
[1751596402289,26.0,151.79,151.68,6.6255]
[1751596402290,9.38868117,151.74,151.68,13.2179975]
[1751596402507,26.0,151.8,151.68,6.5924975]
[1751596402685,9.38868117,151.76,151.7,9.38868117]
[1751596402882,9.38868117,151.75,151.68,6.5924975]
[1751596403205,26.0,151.77,151.67,6.59326168]
[1751596403579,26.0,151.8,151.7,26.0]
[1751596403784,0.28432314,151.79,151.7,26.0]
[1751596403985,0.28432314,151.79,151.7,9.38868117]
[1751596404284,19.81048,151.85,151.67,6.59326168]
[1751596404605,26.0,151.82,151.67,6.59326168]
[1751596404805,26.0,151.82,151.72,9.38868117]
[1751596404986,26.39258726,151.87,151.74,26.0]
[1751596405181,26.39258726,151.87,151.71,6.5915233]
[1751596405182,6.58472326,151.87,151.71,6.5915233]
[1751596405503,6.58472326,151.87,151.75,9.38868117]
[1751596405504,9.38868117,151.82,151.75,9.38868117]
[1751596405705,26.0,151.84,151.72,26.14216157]
[1751596405890,9.38868117,151.84,151.78,9.38868117]
[1751596406097,9.38868117,151.85,151.79,9.38868117]
[1751596406311,9.38868117,151.84,151.79,9.38868117]
[1751596406504,26.0,151.81,151.79,9.38868117]
[1751596406706,26.0,151.83,151.79,9.38868117]
[1751596407099,26.0,151.83,151.78,9.38868117]
[1751596407614,9.38868117,151.79,151.73,9.38868117]
[1751596407911,9.38868117,151.78,151.73,9.38868117]
[1751596408104,9.38868117,151.77,151.72,34.14]
[1751596408407,26.0,151.81,151.74,9.38868117]
[1751596409100,26.0,151.81,151.75,9.38868117]
[1751596409509,26.0,151.81,151.76,9.38868117]
[1751596409902,6.58501805,151.86,151.75,0.14216157]
[1751596409903,26.0,151.89,151.78,9.38868117]
[1751596410096,26.14216157,151.88,151.78,9.38868117]
[1751596410297,35.38868117,151.83,151.79,9.38868117]
[1751596410608,35.38868117,151.83,151.75,0.42648471]
[1751596410815,35.38868117,151.83,151.72,34.14]
[1751596411020,35.38868117,151.83,151.76,9.38868117]
[1751596411916,35.38868117,151.83,151.76,6.58898635]
[1751596412217,35.38868117,151.83,151.76,15.97766752]
[1751596412593,35.38868117,151.83,151.76,6.58898635]
[1751596412794,35.38868117,151.83,151.76,15.97766752]
[1751596412996,35.38868117,151.83,151.76,6.58898635]
[1751596413297,35.38868117,151.83,151.76,15.97766752]
[1751596413895,35.38868117,151.83,151.75,6.58978583]
[1751596414096,26.0,151.83,151.75,6.58978583]
[1751596414495,35.38868117,151.83,151.75,6.58978583]
[1751596414709,35.38868117,151.83,151.76,9.38868117]
[1751596414913,35.38868117,151.83,151.77,9.38868117]
[1751596415113,35.38868117,151.83,151.76,9.38868117]
[1751596415316,9.38868117,151.82,151.75,6.58978583]
[1751596415500,26.0,151.83,151.76,9.38868117]
[1751596415702,26.0,151.87,151.8,9.38868117]
[1751596416013,26.0,151.87,151.75,23.0642504]